[Event "MČR mládeže v rapid šachu 2024 H10"]
[Site "Harrachov, Czech Republic"]
[Date "????.??.??"]
[Round "9.4"]
[White "Temirbek Amirali"]
[Black "Zelenka Tomas"]
[Result "1/2-1/2"]
[TimeControl "20+5"]
[WhiteFideId "447019808"]
[BlackFideId "23750200"]
[WhiteElo "1514"]
[BlackElo "1607"]

1. e4 {[%clk 00:20:08]} {[%emt 00:00:01]} c5 {[%clk 00:20:09]} {[%emt
00:00:01]} 2. Nf3 {[%clk 00:20:11]} {[%emt 00:00:02]} Nc6 {[%clk 00:20:14]} 3.
d4 {[%clk 00:20:15]} {[%emt 00:00:01]} cxd4 {[%clk 00:20:18]} {[%emt 00:00:01]}
4. Nxd4 {[%clk 00:20:19]} g6 {[%clk 00:20:21]} {[%emt 00:00:03]} 5. c4 {[%clk
00:20:22]} Bg7 {[%clk 00:20:23]} {[%emt 00:00:03]} 6. Be3 {[%clk 00:20:26]} Nf6
{[%clk 00:20:27]} {[%emt 00:00:02]} 7. Nc3 {[%clk 00:20:30]} Ng4 {[%clk
00:20:31]} 8. Be2 {[%clk 00:20:26]} {[%emt 00:00:10]} Nxe3 {[%clk 00:19:57]}
{[%emt 00:00:39]} 9. fxe3 {[%clk 00:20:30]} O-O {[%clk 00:19:48]} {[%emt
00:00:13]} 10. O-O {[%clk 00:20:28]} {[%emt 00:00:06]} Nxd4 {[%clk 00:19:11]}
{[%emt 00:00:43]} 11. exd4 {[%clk 00:20:31]} {[%emt 00:00:02]} Qb6 {[%clk
00:19:12]} {[%emt 00:00:03]} 12. c5 {[%clk 00:20:04]} {[%emt 00:00:34]} Qxb2
{[%clk 00:18:58]} {[%emt 00:00:18]} 13. Nb5 {[%clk 00:20:06]} {[%emt 00:00:03]}
a6 {[%clk 00:18:17]} {[%emt 00:00:47]} 14. Nc7 {[%clk 00:19:36]} {[%emt
00:00:35]} Ra7 {[%clk 00:17:44]} {[%emt 00:00:37]} 15. e5 {[%clk 00:19:34]}
{[%emt 00:00:08]} e6 {[%clk 00:17:13]} {[%emt 00:00:36]} 16. Qd3 {[%emt
00:01:25]} Bxe5 {[%clk 00:14:29]} {[%emt 00:01:44]} 17. Rfd1 {[%clk 00:18:12]}
{[%emt 00:01:11]} Bg7 {[%clk 00:13:19]} {[%emt 00:01:13]} 18. Qc4 {[%clk
00:16:00]} {[%emt 00:02:19]} b5 {[%clk 00:11:09]} {[%emt 00:02:16]} 19. cxb6
{[%clk 00:15:44]} {[%emt 00:00:21]} Qxb6 {[%clk 00:11:04]} {[%emt 00:00:09]} 20.
Rac1 {[%clk 00:15:46]} {[%emt 00:00:03]} Bb7 {[%clk 00:10:48]} {[%emt
00:00:19]} 21. Rb1 {[%clk 00:15:10]} {[%emt 00:00:43]} Qd6 {[%clk 00:10:06]}
{[%emt 00:00:37]} 22. Qc5 {[%clk 00:14:27]} {[%emt 00:00:58]} Qxc5 {[%clk
00:09:41]} {[%emt 00:00:30]} 23. dxc5 {[%clk 00:14:30]} {[%emt 00:00:01]} Rc8
{[%clk 00:09:32]} {[%emt 00:00:10]} 24. Rxd7 {[%clk 00:13:47]} {[%emt
00:00:52]} Bc6 {[%clk 00:09:12]} {[%emt 00:00:21]} 25. Bxa6 {[%clk 00:13:37]}
{[%emt 00:00:19]} Bxd7 {[%clk 00:08:56]} {[%emt 00:00:21]} 26. Bxc8 {[%clk
00:13:39]} {[%emt 00:00:03]} Bxc8 {[%clk 00:09:00]} {[%emt 00:00:01]} 27. Nb5
{[%clk 00:13:40]} {[%emt 00:00:03]} Rb7 {[%clk 00:08:52]} {[%emt 00:00:12]} 28.
c6 {[%clk 00:13:41]} {[%emt 00:00:06]} Rb6 {[%clk 00:08:25]} {[%emt 00:00:23]}
29. c7 {[%clk 00:12:53]} {[%emt 00:01:02]} Be5 {[%clk 00:07:43]} {[%emt
00:00:43]} 30. a4 {[%clk 00:12:40]} {[%emt 00:00:22]} Bxc7 {[%clk 00:07:06]}
{[%emt 00:00:41]} 31. Rc1 {[%clk 00:12:28]} {[%emt 00:00:17]} Bxh2+ {[%clk
00:06:01]} {[%emt 00:01:10]} 32. Kxh2 {[%clk 00:12:30]} {[%emt 00:00:03]} Bd7
{[%clk 00:05:48]} {[%emt 00:00:15]} 33. Rc5 {[%clk 00:12:20]} {[%emt 00:00:19]}
Bxb5 {[%clk 00:04:56]} {[%emt 00:00:57]} 34. Rxb5 {[%clk 00:12:22]} {[%emt
00:00:03]} Ra6 {[%clk 00:04:27]} {[%emt 00:00:30]} 35. a5 {[%clk 00:12:22]}
{[%emt 00:00:08]} Kf8 {[%clk 00:04:28]} {[%emt 00:00:03]} 36. Kg3 {[%clk
00:12:26]} {[%emt 00:00:03]} Ke7 {[%clk 00:04:31]} {[%emt 00:00:01]} 37. Kf4
{[%clk 00:12:25]} {[%emt 00:00:06]} f6 {[%clk 00:03:26]} {[%emt 00:01:10]} 38.
Rb7+ {[%clk 00:12:19]} {[%emt 00:00:12]} Kd6 {[%clk 00:03:14]} {[%emt
00:00:13]} 39. Rxh7 {[%clk 00:12:21]} {[%emt 00:00:07]} Rxa5 {[%clk 00:03:17]}
{[%emt 00:00:03]} 40. Rh6 {[%clk 00:12:15]} {[%emt 00:00:09]} Rg5 {[%clk
00:03:00]} {[%emt 00:00:18]} 41. g4 {[%clk 00:12:16]} {[%emt 00:00:07]} e5+
{[%clk 00:02:56]} {[%emt 00:00:09]} 42. Kf3 {[%clk 00:12:19]} {[%emt 00:00:04]}
Kd5 {[%clk 00:02:58]} {[%emt 00:00:02]} 43. Rh8 {[%clk 00:12:21]} {[%emt
00:00:03]} Kd4 {[%clk 00:02:32]} {[%emt 00:00:30]} 44. Rd8+ {[%clk 00:12:23]}
{[%emt 00:00:04]} Kc3 {[%clk 00:02:34]} {[%emt 00:00:03]} 45. Rd6 {[%clk
00:12:23]} {[%emt 00:00:05]} f5 {[%clk 00:02:22]} {[%emt 00:00:15]} 46. gxf5
{[%clk 00:12:14]} {[%emt 00:00:17]} gxf5 {[%clk 00:02:20]} {[%emt 00:00:06]} 47.
Rd5 {[%clk 00:12:15]} {[%emt 00:00:05]} e4 {[%clk 00:02:18]} {[%emt 00:00:06]}
48. Kf4 {[%clk 00:12:19]} {[%emt 00:00:01]} Rh5 {[%clk 00:02:01]} {[%emt
00:00:21]} 49. Rd1 {[%clk 00:12:15]} {[%emt 00:00:11]} Kc2 {[%clk 00:01:27]}
{[%emt 00:00:33]} 50. Re1 {[%clk 00:12:10]} {[%emt 00:00:15]} Kd2 {[%clk
00:01:20]} {[%emt 00:00:10]} 51. Ra1 {[%clk 00:12:05]} {[%emt 00:00:12]} Ke2
{[%clk 00:00:15]} {[%emt 00:01:10]} 52. Ra2+ {[%clk 00:12:04]} {[%emt
00:00:05]} Kd1 {[%clk 00:00:19]} {[%emt 00:00:02]} 53. Ra1+ {[%clk 00:12:03]}
{[%emt 00:00:06]} Kc2 {[%clk 00:00:23]} {[%emt 00:00:01]} 54. Re1 {[%clk
00:12:04]} {[%emt 00:00:03]} Rh3 {[%clk 00:00:18]} {[%emt 00:00:09]} 55. Ra1
{[%clk 00:11:40]} {[%emt 00:00:30]} e3 {[%clk 00:00:16]} {[%emt 00:00:08]} 56.
Ra2+ {[%clk 00:11:38]} {[%emt 00:00:07]} Kb1 {[%clk 00:00:18]} {[%emt
00:00:03]} 57. Re2 {[%clk 00:11:41]} {[%emt 00:00:01]} Kc1 {[%clk 00:00:22]}
{[%emt 00:00:02]} 58. Rxe3 {[%clk 00:11:43]} {[%emt 00:00:03]} Rxe3 {[%clk
00:00:16]} {[%emt 00:00:11]} 59. Kxe3 {[%clk 00:11:46]} {[%emt 00:00:01]} Kc2
{[%clk 00:00:19]} {[%emt 00:00:02]} 60. Kf4 {[%clk 00:11:49]} {[%emt 00:00:02]}
Kd3 {[%clk 00:00:22]} {[%emt 00:00:02]} 61. Kxf5 {[%clk 00:11:53]} {[%emt
00:00:02]} 1/2-1/2



[ePGN "0.1;DGT LiveChess/2.2.6"]

[Event "MČR mládeže v rapid šachu 2024 H10"]
[Site "Harrachov, Czech Republic"]
[Date "????.??.??"]
[Round "9.5"]
[White "Skoloud Josef"]
[Black "Vratny Vojtech"]
[Result "1-0"]
[TimeControl "20+5"]
[WhiteFideId "23744111"]
[BlackFideId "23753692"]
[WhiteElo "1683"]
[BlackElo "1591"]

1. e4 {[%clk 00:20:08]} {[%emt 00:00:01]} c6 {[%clk 00:20:08]} {[%emt
00:00:03]} 2. d4 {[%clk 00:20:11]} {[%emt 00:00:01]} d5 {[%clk 00:20:09]}
{[%emt 00:00:03]} 3. exd5 {[%clk 00:20:12]} {[%emt 00:00:04]} cxd5 {[%clk
00:20:12]} {[%emt 00:00:04]} 4. c4 {[%clk 00:20:14]} Nf6 {[%clk 00:20:11]}
{[%emt 00:00:06]} 5. Nc3 {[%clk 00:20:12]} {[%emt 00:00:07]} g6 {[%clk
00:20:11]} {[%emt 00:00:05]} 6. Nf3 {[%clk 00:20:05]} {[%emt 00:00:12]} Bg7
{[%clk 00:20:12]} {[%emt 00:00:04]} 7. Be3 {[%clk 00:19:27]} {[%emt 00:00:44]}
O-O {[%clk 00:20:10]} {[%emt 00:00:06]} 8. Bd3 {[%clk 00:19:11]} {[%emt
00:00:21]} dxc4 {[%clk 00:20:09]} {[%emt 00:00:06]} 9. Bxc4 {[%clk 00:19:10]}
{[%emt 00:00:06]} Bg4 {[%clk 00:20:10]} {[%emt 00:00:05]} 10. h3 {[%clk
00:18:03]} {[%emt 00:01:12]} Bxf3 {[%clk 00:20:06]} {[%emt 00:00:08]} 11. Qxf3
{[%clk 00:17:53]} {[%emt 00:00:15]} Nc6 {[%clk 00:20:09]} {[%emt 00:00:03]} 12.
Rd1 {[%clk 00:17:08]} {[%emt 00:00:50]} Rc8 {[%clk 00:19:46]} {[%emt 00:00:22]}
13. O-O {[%clk 00:16:20]} {[%emt 00:00:59]} Na5 {[%clk 00:19:03]} {[%emt
00:00:45]} 14. Bd3 {[%clk 00:15:24]} {[%emt 00:01:05]} Ne8 {[%clk 00:17:57]}
{[%emt 00:01:10]} 15. Be4 {[%clk 00:13:12]} {[%emt 00:02:19]} Nd6 {[%clk
00:17:49]} {[%emt 00:00:09]} 16. Bg5 {[%clk 00:11:24]} {[%emt 00:01:55]} Nxe4
{[%clk 00:16:57]} {[%emt 00:00:58]} 17. Qxe4 {[%clk 00:11:15]} {[%emt
00:00:14]} Re8 {[%clk 00:15:57]} {[%emt 00:01:03]} 18. Nd5 {[%clk 00:10:42]}
{[%emt 00:00:40]} Nc6 {[%clk 00:15:12]} {[%emt 00:00:45]} 19. Rfe1 {[%clk
00:06:44]} {[%emt 00:04:08]} Bf8 {[%clk 00:13:16]} {[%emt 00:01:59]} 20. b4
{[%clk 00:05:19]} {[%emt 00:01:32]} a6 {[%clk 00:12:36]} {[%emt 00:00:38]} 21.
a4 {[%clk 00:04:56]} {[%emt 00:00:36]} b5 {[%clk 00:12:29]} {[%emt 00:00:12]}
22. a5 {[%clk 00:04:50]} {[%emt 00:00:11]} Qd6 {[%clk 00:06:27]} {[%emt
00:05:58]} 23. Bf4 {[%clk 00:04:36]} {[%emt 00:00:28]} Qd8 {[%clk 00:05:58]}
{[%emt 00:00:33]} 24. Nb6 {[%clk 00:04:00]} {[%emt 00:00:41]} Nxb4 {[%clk
00:05:18]} {[%emt 00:00:43]} 25. Nxc8 {[%clk 00:04:00]} {[%emt 00:00:07]} Qxc8
{[%clk 00:05:19]} {[%emt 00:00:04]} 26. Rc1 {[%clk 00:03:59]} {[%emt 00:00:07]}
Qd7 {[%clk 00:05:11]} {[%emt 00:00:11]} 27. Rc7 {[%clk 00:03:08]} {[%emt
00:00:58]} Qd5 {[%clk 00:04:53]} {[%emt 00:00:20]} 28. Qe3 {[%clk 00:01:20]}
{[%emt 00:01:56]} e6 {[%clk 00:02:48]} {[%emt 00:02:08]} 29. Qc3 {[%clk
00:01:01]} {[%emt 00:00:26]} Bd6 {[%clk 00:02:00]} {[%emt 00:00:51]} 30. Bxd6
{[%clk 00:01:01]} {[%emt 00:00:06]} Qxd6 {[%clk 00:02:03]} {[%emt 00:00:03]} 31.
Rc5 {[%clk 00:01:00]} {[%emt 00:00:06]} Nd5 {[%clk 00:02:02]} {[%emt 00:00:05]}
32. Qc1 {[%clk 00:00:56]} {[%emt 00:00:08]} Nb4 {[%clk 00:01:48]} {[%emt
00:00:19]} 33. Qc3 {[%clk 00:00:35]} {[%emt 00:00:27]} Nd5 {[%clk 00:01:47]}
{[%emt 00:00:06]} 34. Qc1 {[%clk 00:00:30]} {[%emt 00:00:10]} Nb4 {[%clk
00:01:45]} {[%emt 00:00:07]} 35. Rd1 {[%clk 00:00:31]} {[%emt 00:00:04]} Nd5
{[%clk 00:01:36]} {[%emt 00:00:14]} 36. Rc6 {[%clk 00:00:35]} {[%emt 00:00:02]}
Qb4 {[%clk 00:01:23]} {[%emt 00:00:15]} 37. Rxa6 {[%clk 00:00:28]} {[%emt
00:00:15]} Nc3 {[%clk 00:01:18]} {[%emt 00:00:09]} 38. Qd2 {[%clk 00:00:29]}
{[%emt 00:00:05]} Qc4 {[%clk 00:01:07]} {[%emt 00:00:14]} 39. Kh1 {[%clk
00:00:28]} {[%emt 00:00:08]} Nxd1 {[%clk 00:01:06]} {[%emt 00:00:07]} 40. Qxd1
{[%clk 00:00:29]} {[%emt 00:00:03]} Rd8 {[%clk 00:01:07]} {[%emt 00:00:04]} 41.
Rb6 {[%clk 00:00:28]} {[%emt 00:00:07]} Rxd4 {[%clk 00:01:03]} {[%emt
00:00:08]} 42. Qb1 {[%clk 00:00:29]} {[%emt 00:00:04]} Qe2 {[%clk 00:00:47]}
{[%emt 00:00:17]} 43. Qxb5 {[%clk 00:00:31]} {[%emt 00:00:06]} Rd1+ {[%clk
00:00:47]} {[%emt 00:00:05]} 44. Kh2 {[%clk 00:00:32]} {[%emt 00:00:03]} Qxf2
{[%clk 00:00:36]} {[%emt 00:00:17]} 45. Rb8+ {[%clk 00:00:33]} {[%emt
00:00:04]} Kg7 {[%clk 00:00:38]} {[%emt 00:00:03]} 46. Qe5+ {[%clk 00:00:36]}
{[%emt 00:00:02]} Qf6 {[%clk 00:00:40]} {[%emt 00:00:03]} 47. Rg8+ {[%clk
00:00:36]} {[%emt 00:00:05]} Kxg8 {[%clk 00:00:40]} {[%emt 00:00:04]} 48. Qxf6
{[%clk 00:00:38]} {[%emt 00:00:03]} Ra1 {[%clk 00:00:42]} {[%emt 00:00:03]} 49.
Qd8+ {[%clk 00:00:38]} {[%emt 00:00:05]} Kg7 {[%clk 00:00:45]} {[%emt
00:00:02]} 50. Qb6 {[%clk 00:00:41]} {[%emt 00:00:03]} Ra2 {[%clk 00:00:44]}
{[%emt 00:00:06]} 51. a6 {[%clk 00:00:41]} {[%emt 00:00:04]} e5 {[%clk
00:00:43]} {[%emt 00:00:06]} 52. a7 {[%clk 00:00:40]} {[%emt 00:00:07]} e4
{[%clk 00:00:46]} {[%emt 00:00:02]} 53. Qb8 {[%clk 00:00:36]} {[%emt 00:00:09]}
e3 {[%clk 00:00:48]} {[%emt 00:00:03]} 54. a8=Q {[%clk 00:00:38]} {[%emt
00:00:02]} e2 {[%clk 00:00:49]} {[%emt 00:00:04]} 55. Qxa2 {[%clk 00:00:33]}
{[%emt 00:00:10]} e1=Q {[%clk 00:00:50]} {[%emt 00:00:03]} 56. Qbb2+ {[%clk
00:00:36]} {[%emt 00:00:03]} Kg8 {[%clk 00:00:51]} {[%emt 00:00:04]} 57. Qa8+
{[%emt 00:00:10]} 1-0



[ePGN "0.1;DGT LiveChess/2.2.6"]

[Event "MČR mládeže v rapid šachu 2024 H10"]
[Site "Harrachov, Czech Republic"]
[Date "????.??.??"]
[Round "9.6"]
[White "Strihavka Petr"]
[Black "Krivka Lukas"]
[Result "0-1"]
[TimeControl "20+5"]
[WhiteFideId "23760702"]
[BlackFideId "23752092"]
[WhiteElo "1546"]
[BlackElo "1489"]

1. e4 {[%clk 00:20:08]} c6 {[%clk 00:20:09]} {[%emt 00:00:02]} 2. d4 {[%clk
00:20:10]} {[%emt 00:00:04]} d5 {[%clk 00:20:13]} 3. Nc3 {[%clk 00:20:12]}
{[%emt 00:00:03]} dxe4 {[%clk 00:20:18]} {[%emt 00:00:01]} 4. Nxe4 {[%clk
00:20:15]} {[%emt 00:00:03]} Bf5 {[%clk 00:20:22]} 5. Ng3 {[%clk 00:20:18]}
{[%emt 00:00:02]} Bg6 {[%clk 00:20:26]} 6. h4 {[%clk 00:20:20]} {[%emt
00:00:05]} h6 {[%clk 00:20:29]} {[%emt 00:00:01]} 7. Nf3 {[%clk 00:20:21]}
{[%emt 00:00:05]} Nd7 {[%clk 00:20:33]} 8. h5 {[%clk 00:20:19]} {[%emt
00:00:06]} Bh7 {[%clk 00:20:36]} 9. Bd3 {[%clk 00:20:21]} {[%emt 00:00:04]}
Bxd3 {[%clk 00:20:40]} {[%emt 00:00:02]} 10. Qxd3 {[%clk 00:20:24]} {[%emt
00:00:02]} e6 {[%clk 00:20:43]} {[%emt 00:00:03]} 11. Bf4 {[%clk 00:20:18]}
{[%emt 00:00:09]} Qa5+ {[%clk 00:20:44]} {[%emt 00:00:04]} 12. Bd2 {[%clk
00:20:09]} {[%emt 00:00:13]} Qc7 {[%clk 00:20:48]} {[%emt 00:00:02]} 13. O-O-O
{[%clk 00:20:01]} {[%emt 00:00:13]} Ngf6 {[%clk 00:20:50]} {[%emt 00:00:02]} 14.
Rhe1 {[%clk 00:19:29]} {[%emt 00:00:38]} Bd6 {[%clk 00:20:53]} {[%emt
00:00:02]} 15. Nf5 {[%clk 00:17:14]} {[%emt 00:02:18]} Bf8 {[%clk 00:19:00]}
{[%emt 00:01:58]} 16. Ne5 {[%clk 00:16:39]} {[%emt 00:00:41]} Nxe5 {[%clk
00:17:39]} {[%emt 00:01:27]} 17. dxe5 {[%clk 00:16:31]} {[%emt 00:00:13]} Nd5
{[%clk 00:16:48]} {[%emt 00:00:55]} 18. Ng3 {[%clk 00:16:06]} {[%emt 00:00:30]}
O-O-O {[%clk 00:16:46]} {[%emt 00:00:08]} 19. Qb3 {[%clk 00:15:50]} {[%emt
00:00:21]} Qb6 {[%clk 00:15:06]} {[%emt 00:01:45]} 20. Qxb6 {[%clk 00:15:41]}
{[%emt 00:00:13]} Nxb6 {[%clk 00:15:10]} {[%emt 00:00:01]} 21. Ba5 {[%clk
00:15:34]} {[%emt 00:00:12]} Be7 {[%clk 00:13:22]} {[%emt 00:01:54]} 22. Ne4
{[%clk 00:15:27]} {[%emt 00:00:11]} Kc7 {[%clk 00:12:54]} {[%emt 00:00:34]} 23.
c4 {[%clk 00:15:14]} {[%emt 00:00:16]} c5 {[%clk 00:10:08]} {[%emt 00:02:52]}
24. Rxd8 {[%clk 00:13:35]} {[%emt 00:01:43]} Rxd8 {[%clk 00:09:45]} {[%emt
00:00:29]} 25. Rd1 {[%clk 00:13:26]} {[%emt 00:00:13]} Rxd1+ {[%clk 00:09:49]}
{[%emt 00:00:03]} 26. Kxd1 {[%clk 00:13:28]} {[%emt 00:00:02]} Kc6 {[%clk
00:09:43]} {[%emt 00:00:12]} 27. Bxb6 {[%clk 00:13:22]} {[%emt 00:00:11]} Kxb6
{[%clk 00:09:10]} {[%emt 00:00:38]} 28. f4 {[%clk 00:13:23]} {[%emt 00:00:03]}
f5 {[%clk 00:08:31]} {[%emt 00:00:45]} 29. Nc3 {[%clk 00:13:07]} {[%emt
00:00:20]} a6 {[%clk 00:08:24]} {[%emt 00:00:13]} 30. g3 {[%clk 00:13:01]}
{[%emt 00:00:11]} Kc6 {[%clk 00:08:14]} {[%emt 00:00:16]} 31. a4 {[%clk
00:11:24]} {[%emt 00:01:41]} Bd8 {[%clk 00:07:04]} {[%emt 00:01:14]} 32. b3
{[%clk 00:10:28]} {[%emt 00:01:01]} Ba5 {[%clk 00:06:44]} {[%emt 00:00:25]} 33.
Na2 {[%clk 00:10:26]} {[%emt 00:00:07]} b5 {[%clk 00:06:18]} {[%emt 00:00:32]}
34. Ke2 {[%clk 00:10:08]} {[%emt 00:00:23]} bxa4 {[%clk 00:04:49]} {[%emt
00:01:34]} 35. bxa4 {[%clk 00:10:09]} {[%emt 00:00:04]} Bb4 {[%clk 00:04:20]}
{[%emt 00:00:34]} 36. Kf3 {[%clk 00:09:44]} {[%emt 00:00:30]} Bd2 {[%clk
00:02:37]} {[%emt 00:01:48]} 37. g4 {[%clk 00:09:15]} {[%emt 00:00:34]} fxg4+
{[%clk 00:01:59]} {[%emt 00:00:43]} 38. Kxg4 {[%clk 00:09:18]} {[%emt
00:00:01]} Kb6 {[%clk 00:02:03]} {[%emt 00:00:02]} 39. f5 {[%clk 00:09:20]}
{[%emt 00:00:02]} exf5+ {[%clk 00:01:45]} {[%emt 00:00:23]} 40. Kxf5 {[%clk
00:09:24]} {[%emt 00:00:02]} Bg5 {[%clk 00:01:31]} {[%emt 00:00:18]} 41. Nc3
{[%clk 00:09:24]} {[%emt 00:00:05]} Ka5 {[%clk 00:01:25]} {[%emt 00:00:12]} 42.
Ke6 {[%clk 00:09:16]} {[%emt 00:00:12]} Kb4 {[%clk 00:01:24]} {[%emt 00:00:06]}
43. Kd5 {[%clk 00:09:17]} {[%emt 00:00:03]} Kxc3 {[%clk 00:01:02]} {[%emt
00:00:28]} 44. Kxc5 {[%clk 00:09:20]} {[%emt 00:00:02]} Kb3 {[%clk 00:00:57]}
{[%emt 00:00:09]} 45. Kd5 {[%clk 00:09:13]} {[%emt 00:00:12]} Kxa4 {[%clk
00:00:50]} {[%emt 00:00:13]} 46. c5 {[%clk 00:09:15]} {[%emt 00:00:03]} Kb5
{[%clk 00:00:52]} {[%emt 00:00:03]} 47. Kd6 {[%clk 00:09:04]} {[%emt 00:00:14]}
Bf4 {[%clk 00:00:47]} {[%emt 00:00:11]} 48. c6 {[%clk 00:08:49]} {[%emt
00:00:21]} Bxe5+ {[%clk 00:00:47]} {[%emt 00:00:05]} 49. Kxe5 {[%clk 00:08:52]}
{[%emt 00:00:01]} Kxc6 {[%clk 00:00:50]} {[%emt 00:00:02]} 50. Kf5 {[%clk
00:08:56]} {[%emt 00:00:01]} Kd6 {[%clk 00:00:45]} {[%emt 00:00:11]} 51. Kg6
{[%clk 00:08:55]} {[%emt 00:00:06]} Ke6 {[%clk 00:00:39]} {[%emt 00:00:11]} 52.
Kxg7 {[%clk 00:08:48]} {[%emt 00:00:12]} a5 {[%clk 00:00:42]} {[%emt 00:00:03]}
53. Kxh6 {[%clk 00:08:46]} {[%emt 00:00:06]} Kf7 {[%clk 00:00:23]} {[%emt
00:00:24]} 54. Kh7 {[%clk 00:08:44]} {[%emt 00:00:07]} a4 {[%clk 00:00:23]}
{[%emt 00:00:06]} 55. h6 {[%clk 00:08:47]} {[%emt 00:00:02]} a3 {[%clk
00:00:13]} {[%emt 00:00:15]} 56. Kh8 {[%clk 00:08:48]} {[%emt 00:00:04]} a2
{[%clk 00:00:16]} {[%emt 00:00:03]} 57. Kh7 {[%clk 00:08:48]} {[%emt 00:00:05]}
Kf8 {[%clk 00:00:16]} {[%emt 00:00:05]} 58. Kg6 {[%clk 00:08:47]} {[%emt
00:00:05]} a1=Q {[%clk 00:00:19]} {[%emt 00:00:03]} 59. h7 {[%clk 00:08:50]}
{[%emt 00:00:02]} Qg7+ {[%clk 00:00:21]} {[%emt 00:00:03]} 60. Kf5 {[%clk
00:08:53]} {[%emt 00:00:02]} Qxh7+ {[%clk 00:00:25]} {[%emt 00:00:01]} 61. Ke6
{[%clk 00:08:57]} {[%emt 00:00:01]} Qf7+ {[%clk 00:00:29]} {[%emt 00:00:02]} 62.
Kd6 {[%clk 00:09:01]} {[%emt 00:00:01]} Qe7+ {[%clk 00:00:33]} 63. Kc6 {[%clk
00:09:05]} {[%emt 00:00:02]} Qd8 {[%clk 00:00:37]} 64. Kc5 {[%clk 00:09:08]}
{[%emt 00:00:03]} Ke7 {[%clk 00:00:42]} 65. Kc6 {[%clk 00:09:12]} {[%emt
00:00:02]} Qd7+ {[%clk 00:00:46]} {[%emt 00:00:01]} 66. Kc5 Qd6+ 67. Kc4 {[%clk
00:09:19]} {[%emt 00:00:02]} Ke6 {[%clk 00:00:54]} 68. Kc3 {[%clk 00:09:22]}
{[%emt 00:00:02]} Qf4 {[%clk 00:00:58]} {[%emt 00:00:01]} 69. Kd3 {[%clk
00:09:24]} {[%emt 00:00:02]} Kd5 {[%clk 00:01:02]} 70. Kc3 {[%clk 00:09:28]}
{[%emt 00:00:01]} Qd4+ {[%clk 00:01:06]} {[%emt 00:00:01]} 71. Kb3 {[%clk
00:09:29]} {[%emt 00:00:04]} Qc4+ {[%clk 00:01:10]} {[%emt 00:00:01]} 72. Kb2
{[%clk 00:09:33]} {[%emt 00:00:01]} Qd3 {[%clk 00:01:13]} 73. Ka2 {[%clk
00:09:36]} {[%emt 00:00:02]} Qb5 {[%clk 00:01:14]} {[%emt 00:00:04]} 74. Ka1
{[%clk 00:09:39]} {[%emt 00:00:02]} Qb4 {[%clk 00:01:16]} {[%emt 00:00:03]} 75.
Ka2 {[%clk 00:09:42]} {[%emt 00:00:03]} Kc4 {[%clk 00:01:20]} 76. Ka1 {[%clk
00:09:46]} {[%emt 00:00:03]} Qd2 {[%clk 00:01:23]} {[%emt 00:00:01]} 77. Kb1
{[%clk 00:09:49]} {[%emt 00:00:01]} Kb3 {[%clk 00:01:27]} 78. Ka1 {[%clk
00:09:54]} Qe1# {[%emt 00:00:04]} 0-1



[ePGN "0.1;DGT LiveChess/2.2.6"]

[Event "MČR mládeže v rapid šachu 2024 H10"]
[Site "Harrachov, Czech Republic"]
[Date "????.??.??"]
[Round "9.7"]
[White "Trejbal Jindrich"]
[Black "Sarman Damian"]
[Result "1-0"]
[TimeControl "20+5"]
[WhiteFideId "23743948"]
[BlackFideId "23753170"]
[WhiteElo "1631"]
[BlackElo "1555"]

1. f4 {[%clk 00:20:09]} {[%emt 00:11:48]} d5 {[%clk 00:20:05]} {[%emt
00:00:06]} 2. d4 {[%clk 00:20:13]} Bf5 {[%clk 00:19:58]} {[%emt 00:00:12]} 3.
Nf3 {[%clk 00:20:15]} {[%emt 00:00:03]} Nc6 {[%clk 00:19:59]} {[%emt 00:00:05]}
4. e3 {[%clk 00:20:18]} {[%emt 00:00:01]} e6 {[%clk 00:20:02]} {[%emt
00:00:02]} 5. c3 {[%clk 00:20:23]} {[%emt 00:00:02]} Nf6 {[%clk 00:20:02]}
{[%emt 00:00:04]} 6. Bd3 {[%clk 00:20:27]} {[%emt 00:00:01]} Bxd3 7. Qxd3
{[%clk 00:20:30]} Bd6 {[%clk 00:20:01]} {[%emt 00:00:08]} 8. O-O {[%clk
00:20:33]} {[%emt 00:00:02]} h6 {[%clk 00:19:59]} {[%emt 00:00:07]} 9. Nbd2
{[%clk 00:20:37]} Qe7 {[%clk 00:20:00]} {[%emt 00:00:03]} 10. Ne5 {[%clk
00:20:41]} Bxe5 {[%clk 00:19:53]} {[%emt 00:00:14]} 11. fxe5 {[%clk 00:20:45]}
{[%emt 00:00:01]} Nd7 {[%clk 00:19:55]} {[%emt 00:00:03]} 12. e4 {[%clk
00:20:46]} {[%emt 00:00:03]} Nb6 {[%emt 00:00:06]} 13. b3 {[%clk 00:20:40]}
{[%emt 00:00:09]} O-O {[%clk 00:19:52]} {[%emt 00:00:08]} 14. exd5 {[%clk
00:20:31]} {[%emt 00:00:14]} Nxd5 {[%clk 00:19:52]} {[%emt 00:00:04]} 15. c4
{[%clk 00:20:35]} {[%emt 00:00:02]} Nb6 {[%clk 00:19:54]} {[%emt 00:00:03]} 16.
Rf4 {[%clk 00:20:32]} {[%emt 00:00:07]} Rad8 {[%clk 00:19:51]} {[%emt
00:00:08]} 17. Nf3 {[%clk 00:20:19]} {[%emt 00:00:18]} Nb8 {[%clk 00:19:36]}
{[%emt 00:00:21]} 18. a4 {[%clk 00:20:21]} {[%emt 00:00:04]} c5 {[%clk
00:19:36]} {[%emt 00:00:04]} 19. Ba3 {[%clk 00:20:18]} {[%emt 00:00:07]} Qc7
{[%clk 00:19:19]} {[%emt 00:00:22]} 20. Qe3 {[%clk 00:20:02]} {[%emt 00:00:21]}
cxd4 {[%clk 00:19:00]} {[%emt 00:00:24]} 21. Nxd4 {[%clk 00:20:05]} {[%emt
00:00:02]} Rfe8 {[%clk 00:19:02]} {[%emt 00:00:04]} 22. Bd6 {[%clk 00:20:08]}
{[%emt 00:00:02]} Qc8 {[%clk 00:19:00]} {[%emt 00:00:07]} 23. Raf1 {[%clk
00:20:10]} {[%emt 00:00:03]} Rd7 {[%clk 00:18:45]} {[%emt 00:00:20]} 24. Qg3
{[%clk 00:19:55]} {[%emt 00:00:19]} Rxd6 {[%clk 00:18:40]} {[%emt 00:00:10]} 25.
exd6 {[%clk 00:19:50]} {[%emt 00:00:10]} Rf8 {[%clk 00:18:36]} {[%emt
00:00:09]} 26. Rg4 {[%clk 00:19:43]} {[%emt 00:00:13]} g6 {[%clk 00:18:40]}
{[%emt 00:00:02]} 27. Rf6 {[%clk 00:19:31]} {[%emt 00:00:16]} Kh7 {[%clk
00:18:23]} {[%emt 00:00:22]} 28. Rgxg6 {[%clk 00:19:19]} {[%emt 00:00:18]} fxg6
{[%clk 00:17:00]} {[%emt 00:01:28]} 29. Qxg6+ {[%clk 00:19:22]} {[%emt
00:00:02]} Kh8 {[%clk 00:16:58]} {[%emt 00:00:07]} 30. Qxh6+ {[%clk 00:19:25]}
{[%emt 00:00:02]} Kg8 {[%clk 00:17:00]} {[%emt 00:00:02]} 31. Rg6+ {[%clk
00:19:29]} {[%emt 00:00:01]} Kf7 {[%clk 00:17:02]} {[%emt 00:00:03]} 32. Qg7+
{[%clk 00:19:33]} {[%emt 00:00:01]} Ke8 {[%clk 00:17:01]} {[%emt 00:00:06]} 33.
Qe7# {[%clk 00:19:36]} {[%emt 00:00:01]} 1-0



[ePGN "0.1;DGT LiveChess/2.2.6"]